lending/lending_fUSD_20240705
["ID","MTS","AMOUNT","RATE_DAILY","PERIOD"]
[331275054,1720171117135,-741.95,0.00054794,120]
[331275057,1720171117187,-741.95,0.00054794,120]
[331275059,1720171117241,-741.95,0.00054794,120]
[331275062,1720171117293,-741.95,0.00054794,120]
[331275065,1720171117346,-741.95,0.00054794,120]
[331275068,1720171117397,-741.95,0.00054794,120]
[331275070,1720171117454,-741.95,0.00054794,120]
[331275073,1720171117503,-741.95,0.00054794,120]
[331275075,1720171117553,-741.95,0.00054794,120]
[331275077,1720171117842,-741.95,0.00054794,120]
[331275080,1720171117898,-741.95,0.00054794,120]
[331275083,1720171117968,-741.95,0.00054794,120]
[331275086,1720171118028,-741.95,0.00054794,120]
[331275088,1720171118085,-741.95,0.00054794,120]
[331275091,1720171118142,-742.14280067,0.00054794,120]
[331275094,1720171118196,-1916.66,0.00054794,120]
[331275096,1720171118248,-1916.66,0.00054794,120]
[331275099,1720171118300,-1916.66,0.00054794,120]
[331275102,1720171118354,-1916.66,0.00054794,120]
[331275105,1720171118409,-1916.66,0.00054794,120]
[331275108,1720171118464,-1916.66,0.00054794,120]
[331275110,1720171118517,-1916.66,0.00054794,120]
[331275113,1720171118571,-1916.66,0.00054794,120]
[331275116,1720171118630,-1916.66,0.00054794,120]
[331275119,1720171118685,-1916.66,0.00054794,120]
[331275122,1720171118736,-1916.66,0.00054794,120]
[331275124,1720171118792,-1916.66,0.00054794,120]
[331275127,1720171118849,-1916.66,0.00054794,120]
[331275130,1720171118905,-1916.66,0.00054794,120]
[331275133,1720171118958,-1916.66,0.00054794,120]
[331275136,1720171119011,-1916.66,0.00054794,120]
[331275138,1720171119071,-1916.66,0.00054794,120]
[331275141,1720171119134,-1916.66,0.00054794,120]
[331275144,1720171119198,-1916.66,0.00054794,120]
[331275147,1720171119254,-1916.66,0.00054794,120]
[331275149,1720171119312,-1916.66,0.00054794,120]
[331275151,1720171119375,-1916.66,0.00054794,120]
[331275154,1720171119432,-1916.66,0.00054794,120]
[331275157,1720171119494,-1916.82,0.00054794,120]
[331275159,1720171119555,-500.0,0.00054794,120]
[331275161,1720171119717,-500.0,0.00054794,120]
[331275164,1720171119776,-500.0,0.00054794,120]
[331275167,1720171119838,-500.0,0.00054794,120]
[331275170,1720171119899,-500.0,0.00054794,120]
[331275172,1720171119953,-500.0,0.00054794,120]
[331275174,1720171120012,-500.0,0.00054794,120]
[331275177,1720171120070,-500.0,0.00054794,120]
[331275180,1720171120124,-195.44861518,0.00054794,120]
[331275183,1720171120182,-500.0,0.00054983,120]
[331275185,1720171120241,-50000.0,0.00055,55]
[331275186,1720171120297,-355.0,0.00055,120]
[331275187,1720171120358,-200.0,0.00055,34]
[331275190,1720171120414,-815000.0,0.00055,120]
[331275193,1720171120476,-400.0,0.0005597,30]
[331275195,1720171120531,-400.0,0.0005597,30]
[331275198,1720171120587,-209.0,0.0005599,30]
[331275201,1720171120644,-209.0,0.0005599,30]
[331275204,1720171120698,-209.0,0.0005599,30]
[331275206,1720171120755,-209.0,0.0005599,30]
[331275208,1720171120811,-209.0,0.0005599,30]
[331275211,1720171120865,-50000.0,0.00056,56]
[331275213,1720171120931,-327.521812,0.00056,104]
[331275216,1720171120984,-256.776518,0.00056,35]
[331275218,1720171121040,-528.58,0.00056,120]
[331275220,1720171121103,-528.58,0.00056,120]
[331275223,1720171121169,-1583.46734398,0.000562,90]
[331275225,1720171121432,-174.35446,0.0005643,80]
[331275227,1720171121632,-200.0,0.00056608,120]
[331275229,1720171121979,-500.0,0.00056999,120]
[331275230,1720171122253,-155.31739721,0.00056999,120]
[331275233,1720171122783,-3465.45523989,0.00056999,120]
[331275235,1720171123036,-50000.0,0.00057,57]
[331275237,1720171123894,-661631.92370993,0.00057,120]
[331275240,1720171124884,-1040.0,0.00057,120]
[331275242,1720171125384,-1726.55668,0.00057,82]
[331275244,1720171125988,-564.49942697,0.00057024,120]
[331275246,1720171126566,-468.21982432,0.00057024,120]
[331275248,1720171126964,-633.8264504,0.00057024,120]
[331275251,1720171127327,-408.0,0.0005743,120]
[331275253,1720171127652,-151.0,0.00057452,120]
[331275254,1720171127945,-151.0,0.00057479,120]
[331275256,1720171128258,-1000.0,0.00057499,120]
[331275258,1720171128569,-564.49942697,0.00057522,120]
[331275260,1720171128908,-468.21982432,0.00057522,120]
[331275262,1720171129744,-633.8264504,0.00057522,120]
[331275264,1720171130335,-238212.55899043,0.000578,45]
[331275265,1720171130485,-5608.4,0.00057922,117]
[331275267,1720171130742,-1000.0,0.00057999,120]
[331275270,1720171130819,-50000.0,0.00058,58]
[331275273,1720171130877,-645.15545013,0.00058,120]
[331275276,1720171130937,-350.0,0.00058,120]
[331275279,1720171130994,-6000.0,0.00058,30]
[331275282,1720171131054,-1000.0,0.00058,120]
[331275285,1720171131111,-9089.0,0.00058,120]
[331275288,1720171131169,-564.49942697,0.00058021,120]
[331275291,1720171131232,-468.21982432,0.00058021,120]
[331275293,1720171131448,-633.8264504,0.00058021,120]
[331275296,1720171131506,-151.0,0.00058274,120]
[331275299,1720171131561,-161.91684627,0.0005852,120]
[331275302,1720171131616,-564.49942697,0.0005852,120]
[331275305,1720171131672,-468.21982432,0.0005852,120]
[331275308,1720171131733,-633.8264504,0.0005852,120]
[331275311,1720171131791,-151.0,0.00058795,120]
[331275314,1720171131852,-174.35447,0.0005893,91]
[331275316,1720171132233,-5000.0,0.00059,120]
[331275318,1720171132713,-500.0,0.00059,120]
[331275321,1720171132769,-10000.0,0.00059,120]
[331275324,1720171132958,-564.49942697,0.00059019,120]
[331275326,1720171133015,-468.21982432,0.00059019,120]
[331275329,1720171133076,-633.8264504,0.00059019,120]
[331275331,1720171133209,-151.0,0.00059068,120]
[331275334,1720171133269,-500.0,0.00059218,120]
[331275337,1720171133327,-564.49942697,0.00059517,120]
[331275339,1720171133384,-468.21982432,0.00059517,120]
[331275341,1720171133500,-633.8264504,0.00059517,120]
[331275344,1720171133556,-150.0,0.0005966,120]
[331275347,1720171133619,-1040.0,0.0005985,120]
[331275350,1720171133676,-151.0,0.00059863,120]
[331275352,1720171133967,-50743.14,0.0005987,120]
[331275354,1720171134444,-50000.0,0.0006,60]
[331275356,1720171134683,-151.54009041,0.0006,120]
[331275359,1720171134741,-897.85999923,0.0006,120]
[331275362,1720171134801,-360.0,0.0006,30]
[331275363,1720171134858,-1379.89506378,0.0006,120]
[331275364,1720171134916,-1496.6160122,0.0006,120]
[331275365,1720171134975,-1000.0,0.0006,120]
[331275368,1720171135034,-350.0,0.0006,120]
[331275370,1720171135218,-151.68229504,0.0006,120]
[331275373,1720171135278,-412655.04362092,0.0006,120]
[331275376,1720171135337,-1098.27421861,0.0006,120]
[331275379,1720171135399,-2809.0,0.0006,120]
[331275382,1720171135461,-1000.0,0.0006,60]
[331275385,1720171135520,-500.0,0.0006,120]
[331275388,1720171135576,-4997.04653434,0.0006,120]
[331275391,1720171135635,-239.29068273,0.0006,120]
[331275394,1720171135696,-11301.96144224,0.0006,94]
[331275397,1720171135756,-4499.32681345,0.0006,94]
[331275400,1720171135816,-564.49942697,0.00060016,120]
[331275402,1720171135875,-468.21982432,0.00060016,120]
[331275405,1720171135937,-633.8264504,0.00060016,120]
[331275408,1720171135997,-151.0,0.00060137,120]
[331275411,1720171136058,-3044.74,0.00060274,120]
[331275414,1720171136116,-311.59993027,0.000603,120]
[331275417,1720171136174,-161.91684627,0.00060515,120]
[331275420,1720171136240,-564.49942697,0.00060515,120]
[331275423,1720171136297,-468.21982432,0.00060515,120]
[331275426,1720171136354,-633.8264504,0.00060515,120]
[331275429,1720171136429,-151.0,0.00060658,120]
[331275432,1720171136496,-200.0,0.00060779,120]
[331275434,1720171136592,-1000.0,0.00060999,120]
[331275437,1720171136651,-564.49942697,0.00061014,120]
[331275440,1720171136709,-468.21982432,0.00061014,120]
[331275443,1720171136769,-633.8264504,0.00061014,120]
[331275446,1720171136827,-174.35446,0.0006143,103]
[331275449,1720171136888,-500.0,0.00061437,120]
[331275452,1720171136950,-151.0,0.00061452,120]
[331275455,1720171137009,-151.0,0.00061479,120]
[331275457,1720171137265,-564.49942697,0.00061512,120]
[331275460,1720171137324,-468.21982432,0.00061512,120]
[331275463,1720171137381,-633.8264504,0.00061512,120]
[331275466,1720171137437,-50000.0,0.0006173,120]
[331275469,1720171137493,-200.0,0.000619,120]
[331275473,1720171137883,-50000.0,0.00062,62]
[331275476,1720171137946,-1726.55668,0.00062,82]
[331275478,1720171138008,-564.49942697,0.00062011,120]
[331275481,1720171138071,-468.21982432,0.00062011,120]
[331275484,1720171138136,-633.8264504,0.00062011,120]
[331275487,1720171138201,-6010.5,0.00062227,117]
[331275491,1720171138264,-151.0,0.00062247,120]
[331275494,1720171138326,-1000.0,0.00062499,120]
[331275496,1720171138388,-161.91684627,0.0006251,120]
[331275499,1720171138450,-564.49942697,0.0006251,120]
[331275502,1720171138508,-468.21982432,0.0006251,120]
[331275505,1720171138570,-633.8264504,0.0006251,120]
[331275508,1720171138631,-256.21909602,0.00062611,60]
[331275511,1720171138700,-2489.6953,0.0006278,30]
[331275514,1720171138770,-151.0,0.00062822,120]
[331275516,1720171139063,-1040.0,0.00062843,120]
[331275519,1720171139126,-300.0,0.00063,120]
[331275522,1720171139192,-564.49942697,0.00063009,120]
[331275525,1720171139260,-468.21982432,0.00063009,120]
[331275526,1720171139321,-633.8264504,0.00063009,120]
[331275530,1720171139653,-5000.0,0.00063019,60]
[331275533,1720171139713,-151.0,0.00063041,120]
[331275536,1720171139774,-5000.0,0.00063149,60]
[331275539,1720171139838,-5000.0,0.00063161,60]
[331275541,1720171139896,-1739.02,0.0006318,60]
[331275544,1720171139953,-5000.0,0.00063204,60]
[331275547,1720171140010,-5000.0,0.00063218,60]
[331275550,1720171140067,-2504.9,0.00063244,60]
[331275553,1720171140126,-5000.0,0.00063253,60]
[331275555,1720171140297,-4551.25,0.00063282,60]
[331275558,1720171140355,-5000.0,0.00063357,60]
[331275562,1720171141066,-5000.0,0.00063362,60]
[331275564,1720171141125,-5000.0,0.00063362,60]
[331275567,1720171141184,-4581.35,0.00063363,60]
[331275570,1720171141244,-5000.0,0.00063376,60]
[331275573,1720171141303,-1868.79,0.00063387,60]
[331275576,1720171141361,-3688.3,0.0006339,60]
[331275579,1720171141424,-5000.0,0.0006342,60]
[331275582,1720171141482,-5000.0,0.00063485,60]
[331275585,1720171141542,-564.49942697,0.00063508,120]
[331275588,1720171141604,-468.21982432,0.00063508,120]
[331275591,1720171141667,-633.8264504,0.00063508,120]
[331275594,1720171141727,-2765.75,0.00063525,60]
[331275597,1720171141786,-4803.79,0.00063531,60]
[331275600,1720171141850,-5000.0,0.00063616,60]
[331275602,1720171141908,-10000.0,0.00063616,60]
[331275605,1720171141966,-1296.74,0.00063655,60]
[331275608,1720171142027,-500.0,0.00063655,120]
[331275611,1720171142087,-4620.17,0.00063666,60]
[331275614,1720171142145,-5000.0,0.00063677,60]
[331275616,1720171142205,-15016.03,0.00063688,60]
[331275619,1720171142264,-5000.0,0.00063769,60]
[331275622,1720171142325,-5000.0,0.00063788,60]
[331275625,1720171142386,-150.0,0.0006383,120]
[331275628,1720171142456,-151.0,0.00063836,120]
[331275630,1720171142517,-8708.86,0.00063854,60]
[331275633,1720171142581,-3341.95,0.00063863,60]
[331275636,1720171142644,-5000.0,0.00063868,60]
[331275639,1720171142706,-174.35447,0.0006393,115]
[331275642,1720171142767,-5000.0,0.0006396,60]
[331275645,1720171142830,-5000.0,0.00063963,60]
[331275648,1720171142895,-50000.0,0.00064,64]
[331275650,1720171142959,-2020.52,0.00064,30]
[331275653,1720171143024,-150.0,0.00064,60]
[331275656,1720171143090,-564.49942697,0.00064006,120]
[331275658,1720171143330,-468.21982432,0.00064006,120]
[331275661,1720171143397,-633.8264504,0.00064006,120]
[331275664,1720171143468,-151.0,0.00064164,120]
[331275666,1720171143534,-2360.73,0.000644,120]
[331275670,1720171143613,-161.91684627,0.00064505,120]
[331275672,1720171143684,-564.49942697,0.00064505,120]
[331275675,1720171143750,-468.21982432,0.00064505,120]
[331275679,1720171143852,-633.8264504,0.00064505,120]
[331275682,1720171143931,-200.0,0.00064558,120]
[331275684,1720171144173,-151.0,0.0006463,120]
[331275687,1720171144652,-528.68844967,0.000647,120]
[331275690,1720171144710,-984.43,0.000648,120]
[331275693,1720171144771,-580831.23435622,0.0006499,120]
[331275802,1720171149067,1000.0,0.00032271,30]
[331277026,1720171348180,160.0,0.00032271,30]
[331277027,1720171368501,-654.77149997,0.00012302,2]
[331277029,1720171454919,2035.58996889,0.00011199,2]
[331277030,1720171458629,5724.64977,0.00032324,30]
[331277032,1720171495408,-283.95688064,0.00012173,2]
[331277319,1720171543872,257.0,0.00032324,30]
[331277831,1720171680748,-430.00947767,0.00012314,2]
[331277832,1720171681322,-295.26947254,0.00012314,2]
[331277833,1720171681348,-193.62934922,0.00012314,2]
[331277834,1720171681374,-6256.41044676,0.00013028,2]
[331277835,1720171681398,-155.0,0.00013516,2]
[331277836,1720171681422,-26585.48957918,0.00013543,2]
[331277837,1720171681446,-171.14300236,0.00013699,2]
[331277838,1720171681470,-499.99,0.00016179,2]
[331277839,1720171682038,-5883.64,0.00016179,2]
[331277840,1720171682367,-583.74,0.00016179,2]
[331277841,1720171682516,-381.26,0.00016324,2]
[331277842,1720171682543,-349.96,0.00016324,2]
[331277843,1720171682566,-799.32,0.00016324,2]
[331277844,1720171682593,-495.12,0.00016476,2]
[331277845,1720171682620,-619.53666885,0.000165,2]
[331277846,1720171682645,-4632.77112139,0.00016675,2]
[331277847,1720171682668,-299.99,0.00016675,4]
[331277848,1720171682692,-1214.75,0.00016685,2]
[331277849,1720171682716,-150.99,0.00016685,2]
[331277850,1720171682797,-186.05,0.00016712,2]
[331277851,1720171682823,-3556.67,0.00016785,2]
[331277852,1720171682848,-250.0,0.0001697,2]
[331277853,1720171682872,-285.43,0.00017088,2]
[331277854,1720171682896,-1120.18,0.00017208,2]
[331277855,1720171682921,-177.51,0.00017233,2]
[331277856,1720171682945,-2751.0,0.00017259,2]
[331277857,1720171682968,-1370.7,0.00017381,2]
[331277858,1720171682996,-9320.9,0.00017388,2]
[331277859,1720171683021,-16440.87,0.00017397,2]
[331277860,1720171683045,-551.38,0.00017441,2]
[331277861,1720171683070,-10000.0,0.00017443,2]
[331277862,1720171683096,-1000.0,0.00017446,2]
[331277863,1720171683119,-500.0,0.00017474,2]
[331277864,1720171683143,-250.0,0.00017486,2]
[331277865,1720171683167,-2000.0,0.00017508,3]
[331277866,1720171683193,-168.25,0.00017529,2]
[331277867,1720171683219,-164.87,0.00017628,2]
[331277868,1720171683243,-168.399,0.0001782,2]
[331277869,1720171683267,-167.0,0.00017853,2]
[331277870,1720171683295,-35591.7209191,0.00017999,2]
[331277871,1720171683319,-315.05477916,0.00018,2]
[331277872,1720171683343,-426.52,0.00018071,3]
[331277873,1720171683367,-35591.7209191,0.00018081,2]
[331277874,1720171683565,-360.0,0.00018085,2]
[331277875,1720171683593,-1275.0,0.00018085,2]
[331277876,1720171683619,-1820.0,0.00018085,2]
[331277877,1720171683643,-1658.0,0.00018085,2]
[331277878,1720171683666,-167.004,0.00018085,2]
[331277879,1720171683689,-622.944,0.00018085,2]
[331277880,1720171683718,-443.0,0.00018085,2]
[331277881,1720171684076,-451.146,0.00018085,2]
[331277882,1720171684330,-730.232,0.00018085,2]
[331277883,1720171684353,-150.0,0.00018085,2]
[331277884,1720171684379,-2414.0,0.00018085,2]
[331277885,1720171684403,-1304.0,0.00018085,2]
[331277886,1720171684435,-1987.0,0.00018085,2]
[331277887,1720171684467,-548.0,0.00018085,2]
[331277888,1720171684491,-283.0,0.00018085,2]
[331277889,1720171684515,-3206.0,0.00018085,2]
[331277890,1720171684542,-5177.0,0.00018085,2]
[331277891,1720171684566,-291.0,0.00018085,2]
[331277892,1720171684592,-5811.0,0.00018085,2]
[331277893,1720171684619,-1201.647,0.00018085,2]
[331277894,1720171684642,-1664.0,0.00018085,2]
[331277895,1720171684834,-716.869,0.00018085,2]
[331277896,1720171684862,-381.26,0.00018365,2]
[331277897,1720171684887,-167.0,0.00018442,2]
[331277898,1720171684912,-583.74,0.00018443,2]
[331277899,1720171684936,-168.399,0.00018756,2]
[331277900,1720171684960,-300.0,0.00018771,2]
[331277901,1720171685127,-155.1650936,0.00019,2]
[331277902,1720171685151,-155.34957523,0.00019,2]
[331277903,1720171685176,-5000.0,0.00019,2]
[331277904,1720171685198,-167.0,0.00019031,2]
[331277905,1720171685225,-1312.70110865,0.00019069,2]
[331277906,1720171685247,-212.65107117,0.00019077,2]
[331277907,1720171685269,-5408.78,0.00019178,2]
[331277908,1720171685295,-250.0,0.00019178,2]
[331277909,1720171685397,-155.50465982,0.00019299,2]
[331277910,1720171685868,-155.0,0.0001935,2]
[331277912,1720171686789,-1399.54620502,0.00019399,2]
[331277913,1720171687050,-300.0,0.00019399,2]
[331277914,1720171687085,-155.0,0.00019451,2]
[331277915,1720171687126,-1630.1845532,0.00019451,2]
[331277916,1720171687331,-158.72665019,0.00019451,2]
[331277917,1720171687875,-290.97986156,0.00019451,2]
[331277918,1720171688662,-258.97923164,0.00019451,2]
[331277919,1720171689785,-227.17477303,0.00019548,2]
[331277920,1720171690307,-227.17477303,0.00019548,2]
[331277921,1720171690570,-296.67633168,0.00019548,2]
[331277922,1720171690839,-230.34324445,0.00019548,2]
[331277923,1720171691354,-403.73863247,0.00019548,2]
[331277924,1720171691622,-207.53068889,0.00019548,2]
[331277925,1720171692112,-192.0797515,0.00019548,2]
[331277926,1720171692263,-263.46776226,0.00019548,2]
[331277927,1720171692289,-229.70005024,0.00019565,2]
[331277928,1720171692318,-155.0,0.00019565,2]
[331277929,1720171692342,-203.75076819,0.00019565,2]
[331277930,1720171692599,-536.46036163,0.00019565,2]
[331277931,1720171692624,-409.26391914,0.00019565,2]
[331277932,1720171692737,-1073.88075633,0.00019565,2]
[331277933,1720171693211,-369.04652903,0.00019565,2]
[331277934,1720171693467,-174.79794362,0.00019565,2]
[331277935,1720171693711,-266.23744785,0.00019565,2]
[331277936,1720171693974,-167.0,0.00019621,2]
[331277937,1720171694229,-1000.0,0.00019627,2]
[331277938,1720171694470,-272.93353483,0.00019725,2]
[331277939,1720171694704,-155.0,0.00019725,2]
[331277940,1720171695226,-168.399,0.0001979,2]
[331277941,1720171695295,-351.73949547,0.00019863,2]
[331277942,1720171695585,-155.0,0.00019863,2]
[331277943,1720171695936,-449.5249446,0.0001999,2]
[331277944,1720171696165,-900.0,0.0001999,2]
[331277945,1720171696398,-300.77106222,0.00019997,2]
[331277946,1720171696626,-13019.88059217,0.00019997,2]
[331277947,1720171696868,-327.95121143,0.0002,2]
[331277948,1720171697092,-1274.86074098,0.0002,2]
[331277949,1720171697321,-188.00153338,0.0002,2]
[331277950,1720171697375,-868.10770587,0.0002,2]
[331277951,1720171697430,-1250.0,0.0002,2]
[331277952,1720171697644,-48407.3023,0.00020141,2]
[331277953,1720171697682,-300.0,0.00020141,2]
[331277954,1720171697706,-167.0,0.0002021,2]
[331277955,1720171697734,-381.26,0.00020405,2]
[331277956,1720171697757,-173.38,0.00020697,2]
[331277957,1720171697782,-583.74,0.00020707,2]
[331277958,1720171697807,-167.0,0.00020799,2]
[331277959,1720171697829,-168.399,0.00020935,2]
[331277960,1720171697852,-225.33520988,0.00021,2]
[331277961,1720171697876,-48205.73092797,0.0002107,2]
[331277963,1720171747812,-1015.75187423,0.00017443,2]
[331277964,1720171747841,-525.36,0.00019163,2]
[331277965,1720171747866,-297.52875781,0.00019229,2]
[331277966,1720171747890,-1335.37486506,0.00019399,2]
[331277967,1720171747916,-227.17477303,0.00019399,2]
[331277968,1720171747941,-1335.37486506,0.00019399,2]
[331277969,1720171747965,-227.17477303,0.00019451,2]
[331277970,1720171747989,-272.11678812,0.00019997,2]
[331277971,1720171748015,-264.6200961,0.00019997,2]
[331277972,1720171748037,-157.12217543,0.00019997,2]
[331277973,1720171748061,-1794.26907203,0.0002107,2]
[331277974,1720171748085,-155.0,0.0002107,2]
[331277975,1720171748111,-550.80260423,0.0002107,2]
[331277976,1720171748133,-155.0,0.0002107,2]
[331277977,1720171748156,-169.85882371,0.0002107,2]
[331277978,1720171748181,-4173.754,0.00021085,2]
[331277979,1720171748204,-4522.159,0.00021085,2]
[331277980,1720171748227,-1567.0,0.00021085,2]
[331277981,1720171748250,-500.0,0.00021242,2]
[331277982,1720171748275,-160.0,0.00021257,2]
[331277983,1720171748299,-150.0,0.00021317,2]
[331277984,1720171748321,-180.0,0.00021397,2]
[331277985,1720171748344,-1097.96091963,0.00021404,2]
[331277986,1720171748368,-525.36,0.00021427,2]
[331277987,1720171748392,-19874.15394137,0.00021498,2]
[331277988,1720171748417,-174.44,0.00021644,2]
[331277989,1720171748442,-185.45,0.00021644,2]
[331277990,1720171748467,-500.0,0.0002166,2]
[331277991,1720171748491,-606.66561474,0.00021804,2]
[331278008,1720171833945,-300.0,0.00019725,2]
[331278009,1720171833955,-1000.0,0.00019987,2]
[331278010,1720171833965,-35591.7209191,0.0001999,2]
[331278011,1720171833976,-283.49868021,0.0001999,2]
[331278012,1720171833987,-256.54531766,0.0001999,2]
[331278013,1720171833998,-186.00649827,0.00019997,2]
[331278014,1720171834008,-155.0,0.00019997,2]
[331278015,1720171834018,-5000.0,0.00019997,2]
[331278016,1720171834028,-272.00146855,0.00019997,2]
[331278017,1720171834043,-230.1036198,0.00019997,2]
[331278018,1720171834053,-1763.56344644,0.00019997,2]
[331278019,1720171834064,-370.27430286,0.00019997,2]
[331278020,1720171834074,-384.90322456,0.00019997,2]
[331278021,1720171834086,-225.33520988,0.00021,2]
[331278022,1720171834096,-448.32188856,0.0002107,2]
[331278023,1720171834106,-420.0,0.00021484,2]
[331278024,1720171834118,-2019.62512008,0.00021799,2]
[331278025,1720171834128,-155.0,0.00021804,2]
[331278026,1720171834139,-340.15269406,0.00021804,7]
[331278027,1720171834150,-167.17549563,0.00021804,2]
[331278028,1720171834164,-2000.0,0.00021804,2]
[331278029,1720171834174,-24653.95106231,0.00021804,2]
[331278030,1720171834184,-200.0,0.00021804,2]
[331278031,1720171834195,-521.31768957,0.00021804,2]
[331278032,1720171834205,-155.0,0.00021804,2]
[331278033,1720171834215,-1000.0,0.00021808,2]
[331278034,1720171834225,-285.31,0.00021918,2]
[331278035,1720171834235,-150.0,0.00021918,2]
[331278036,1720171834246,-178.36,0.00021918,2]
[331278037,1720171834256,-620.058787,0.00021918,2]
[331278038,1720171834271,-1487.42928624,0.00022,2]
[331278039,1720171834281,-1300.0,0.00022,2]
[331278040,1720171834291,-1805.14303903,0.00022022,2]
[331278041,1720171834301,-200.0,0.00022022,2]
[331278042,1720171834312,-3173.9440254,0.00022098,2]
[331278043,1720171834324,-6281.61778263,0.00022142,2]
[331278044,1720171834334,-6281.61778263,0.00022142,2]
[331278045,1720171834344,-171.53,0.00022163,2]
[331278046,1720171834355,-155.0,0.00022199,2]
[331278047,1720171834365,-1000.0,0.000222,2]
[331278048,1720171834376,-200.0,0.00022242,2]
[331278049,1720171834386,-500.0,0.00022254,2]
[331278050,1720171834397,-500.0,0.00022263,2]
[331278051,1720171834410,-500.0,0.00022272,2]
[331278052,1720171834420,-500.0,0.0002228,2]
[331278053,1720171834431,-500.0,0.00022289,2]
[331278054,1720171834441,-500.0,0.00022298,2]
[331278055,1720171834451,-800.0,0.00022301,2]
[331278056,1720171834461,-500.0,0.00022307,2]
[331278057,1720171834472,-168.399,0.00022307,2]
[331278058,1720171834483,-500.0,0.00022316,2]
[331278067,1720171834795,-716.86932143,0.00022317,2]
[331278069,1720171834806,-155.0,0.00022317,2]
[331278071,1720171834815,-500.0,0.00022324,2]
[331278073,1720171834824,-800.0,0.00022329,2]
[331278075,1720171834834,-500.0,0.00022333,2]
[331278077,1720171834845,-1694.3199497,0.00022334,2]
[331278079,1720171834855,-500.0,0.00022342,2]
[331278081,1720171834865,-500.0,0.00022351,2]
[331278083,1720171834876,-500.0,0.0002236,2]
[331278085,1720171834886,-500.0,0.00022368,2]
[331278087,1720171834896,-793.21748259,0.00022372,2]
[331278089,1720171834908,-500.0,0.00022377,2]
[331278091,1720171834918,-500.0,0.00022386,2]
[331278093,1720171834929,-500.0,0.00022395,2]
[331278096,1720171834940,-500.0,0.00022404,2]
[331278098,1720171834950,-381.26,0.00022446,2]
[331278100,1720171834961,-200.0,0.00022465,2]
[331278102,1720171834970,-150.0,0.00022495,2]
[331278104,1720171834980,-1540.0,0.00022499,2]
[331278106,1720171834992,-611.0,0.00022533,2]
[331278108,1720171835001,-1257.0,0.000226,2]
[331278110,1720171835011,-200.0,0.00022689,2]
[331278112,1720171835020,-620.058787,0.0002274,2]
[331278114,1720171835030,-713.231984,0.000228,2]
[331278116,1720171835045,-800.0,0.00022849,2]
[331278118,1720171835055,-800.0,0.00022849,2]
[331278120,1720171835064,-800.0,0.00022849,2]
[331278122,1720171835074,-1000.0,0.00022874,2]
[331278124,1720171835084,-1000.0,0.00022874,2]
[331278126,1720171835094,-1000.0,0.00022874,2]
[331278128,1720171835103,-1000.0,0.00022874,2]
[331278130,1720171835113,-1000.0,0.00022874,2]
[331278132,1720171835125,-1000.0,0.00022874,2]
[331278134,1720171835136,-1000.0,0.00022874,2]
[331278136,1720171835146,-1000.0,0.00022874,2]
[331278137,1720171835158,-1000.0,0.00022874,2]
[331278138,1720171835167,-1000.0,0.00022874,2]
[331278139,1720171835176,-1000.0,0.00022874,2]
[331278140,1720171835189,-1000.0,0.00022874,2]
[331278141,1720171835199,-1000.0,0.00022874,2]
[331278142,1720171835208,-1000.0,0.00022874,2]
[331278143,1720171835218,-1000.0,0.00022874,2]
[331278144,1720171835227,-1000.0,0.00022874,2]